[Event "Titled Tuesday Blitz May 17 Early 2022"]
[White "Khabinets, Ivan"]
[Black "Petrovskyi, Vadym"]
[WhiteFideId "14115980"]
[BlackFideId "14165210"]
[WhiteElo "2114"]
[BlackElo "2400"]
[Result "1-0"]
[Round "06"]
[TimeControl "180+1"]
[Date "2022.05.17"]
[WhiteClock "0:00:34"]
[BlackClock "0:00:01"]

1. e4 {[%clk 0:03:00]}  c5 {[%clk 0:02:54]} 2. Nf3 {[%clk 0:03:00]}  d6 {[%clk 0:02:55]} 3. Nc3 {[%clk 0:02:58]}  Nf6 {[%clk 0:02:55]} 4. e5 {[%clk 0:02:58]}  dxe5 {[%clk 0:02:54]} 5. Nxe5 {[%clk 0:02:59]}  Nbd7 {[%clk 0:02:55]} 6. d4 {[%clk 0:02:53]}  e6 {[%clk 0:02:37]} 7. Bf4 {[%clk 0:02:48]}  Be7 {[%clk 0:02:27]} 8. Be2 {[%clk 0:02:41]}  O-O {[%clk 0:02:27]} 9. O-O {[%clk 0:02:41]}  Nb6 {[%clk 0:02:17]} 10. dxc5 {[%clk 0:02:36]}  Nbd5 {[%clk 0:02:17]} 11. Nxd5 {[%clk 0:02:34]}  Nxd5 {[%clk 0:02:17]} 12. Bg3 {[%clk 0:02:34]}  Bxc5 {[%clk 0:02:17]} 13. c4 {[%clk 0:02:34]}  Nf6 {[%clk 0:02:12]} 14. Bf3 {[%clk 0:02:34]}  Bd4 {[%clk 0:01:50]} 15. Qd2 {[%clk 0:02:29]}  Qb6 {[%clk 0:01:29]} 16. Rfd1 {[%clk 0:02:11]}  Bxe5 {[%clk 0:01:25]} 17. Bxe5 {[%clk 0:02:09]}  Nd7 {[%clk 0:01:26]} 18. Bd4 {[%clk 0:02:06]}  Qc7 {[%clk 0:01:25]} 19. Rac1 {[%clk 0:02:01]}  e5 {[%clk 0:01:25]} 20. Bc3 {[%clk 0:01:59]}  Nc5 {[%clk 0:01:23]} 21. Qe3 {[%clk 0:01:47]}  f6 {[%clk 0:01:16]} 22. Bb4 {[%clk 0:01:47]}  Ne6 {[%clk 0:01:07]} 23. Bxf8 {[%clk 0:01:45]}  Nxf8 {[%clk 0:00:56]} 24. Bd5+ {[%clk 0:01:37]}  Kh8 {[%clk 0:00:56]} 25. b4 {[%clk 0:01:37]}  Ne6 {[%clk 0:00:41]} 26. Bxe6 {[%clk 0:01:32]}  Bxe6 {[%clk 0:00:42]} 27. a3 {[%clk 0:01:25]}  f5 {[%clk 0:00:40]} 28. c5 {[%clk 0:01:23]}  f4 {[%clk 0:00:41]} 29. Qe4 {[%clk 0:01:22]}  Re8 {[%clk 0:00:37]} 30. Rd6 {[%clk 0:01:18]}  Bb3 {[%clk 0:00:35]} 31. Qd3 {[%clk 0:01:11]}  Ba4 {[%clk 0:00:31]} 32. Re1 {[%clk 0:01:11]}  Bc6 {[%clk 0:00:30]} 33. f3 {[%clk 0:01:08]}  a6 {[%clk 0:00:28]} 34. Qf5 {[%clk 0:00:57]}  Qe7 {[%clk 0:00:24]} 35. Qc2 {[%clk 0:00:44]}  Qg5 {[%clk 0:00:22]} 36. Qe2 {[%clk 0:00:40]}  e4 {[%clk 0:00:15]} 37. fxe4 {[%clk 0:00:37]}  Rxe4 {[%clk 0:00:15]} 38. Rxc6 {[%clk 0:00:34]}  Rxe2 {[%clk 0:00:01]} 39. Rc8+ {[%clk 0:00:34]} 1-0


[Site "https://www.chess.com"]

[Event "Titled Tuesday Blitz May 17 Early 2022"]
[White "Klekowski, Maciej"]
[Black "Sarana, Alexey"]
[WhiteFideId "1132717"]
[BlackFideId "24133795"]
[WhiteElo "2476"]
[BlackElo "2666"]
[Result "0-1"]
[Round "06"]
[TimeControl "180+1"]
[Date "2022.05.17"]
[WhiteClock "0:00:01"]
[BlackClock "0:00:14"]

1. c4 {[%clk 0:03:00]}  e6 {[%clk 0:02:47]} 2. Nf3 {[%clk 0:02:59]}  d5 {[%clk 0:02:48]} 3. b3 {[%clk 0:02:59]}  a5 {[%clk 0:02:47]} 4. Bb2 {[%clk 0:02:43]}  a4 {[%clk 0:02:46]} 5. e3 {[%clk 0:02:43]}  a3 {[%clk 0:02:46]} 6. Bc3 {[%clk 0:02:42]}  Nf6 {[%clk 0:02:47]} 7. d3 {[%clk 0:02:42]}  Be7 {[%clk 0:02:45]} 8. Nbd2 {[%clk 0:02:37]}  c6 {[%clk 0:02:42]} 9. Qc2 {[%clk 0:02:29]}  Na6 {[%clk 0:02:41]} 10. Rd1 {[%clk 0:02:22]}  Nb4 {[%clk 0:02:41]} 11. Qb1 {[%clk 0:02:22]}  O-O {[%clk 0:02:38]} 12. Be2 {[%clk 0:02:20]}  b5 {[%clk 0:02:35]} 13. O-O {[%clk 0:02:18]}  bxc4 {[%clk 0:02:34]} 14. dxc4 {[%clk 0:02:18]}  Ba6 {[%clk 0:02:30]} 15. e4 {[%clk 0:02:16]}  Qc7 {[%clk 0:02:08]} 16. Rfe1 {[%clk 0:01:43]}  Rfe8 {[%clk 0:01:44]} 17. Bf1 {[%clk 0:01:41]}  Rad8 {[%clk 0:01:24]} 18. cxd5 {[%clk 0:01:06]}  Bxf1 {[%clk 0:01:22]} 19. Nxf1 {[%clk 0:01:06]}  cxd5 {[%clk 0:01:20]} 20. Rc1 {[%clk 0:01:05]}  Qb7 {[%clk 0:01:00]} 21. Bxf6 {[%clk 0:01:02]}  Bxf6 {[%clk 0:00:59]} 22. e5 {[%clk 0:01:02]}  Be7 {[%clk 0:00:59]} 23. Nd4 {[%clk 0:00:47]}  Qb6 {[%clk 0:00:56]} 24. Nf3 {[%clk 0:00:27]}  d4 {[%clk 0:00:53]} 25. N1d2 {[%clk 0:00:24]}  d3 {[%clk 0:00:52]} 26. Rc4 {[%clk 0:00:21]}  Nc2 {[%clk 0:00:44]} 27. Ree4 {[%clk 0:00:19]}  Bb4 {[%clk 0:00:43]} 28. h4 {[%clk 0:00:19]}  Rd5 {[%clk 0:00:36]} 29. g3 {[%clk 0:00:15]}  Bc5 {[%clk 0:00:33]} 30. Qf1 {[%clk 0:00:15]}  Nb4 {[%clk 0:00:33]} 31. Rxb4 {[%clk 0:00:05]}  Bxb4 {[%clk 0:00:33]} 32. Nc4 {[%clk 0:00:06]}  Qb5 {[%clk 0:00:31]} 33. Ne3 {[%clk 0:00:05]}  Rd7 {[%clk 0:00:30]} 34. h5 {[%clk 0:00:05]}  h6 {[%clk 0:00:29]} 35. g4 {[%clk 0:00:03]}  Be7 {[%clk 0:00:29]} 36. Nd2 {[%clk 0:00:02]}  Red8 {[%clk 0:00:26]} 37. Nec4 {[%clk 0:00:02]}  Qc5 {[%clk 0:00:25]} 38. Kg2 {[%clk 0:00:02]}  Qc6 {[%clk 0:00:24]} 39. Kg3 {[%clk 0:00:02]}  Rd4 {[%clk 0:00:23]} 40. Qe1 {[%clk 0:00:01]}  Bb4 {[%clk 0:00:23]} 41. Rxd4 {[%clk 0:00:01]}  Rxd4 {[%clk 0:00:24]} 42. Qe3 {[%clk 0:00:02]}  Qd5 {[%clk 0:00:20]} 43. f4 {[%clk 0:00:01]}  Bc5 {[%clk 0:00:18]} 44. Qf3 {[%clk 0:00:01]}  g6 {[%clk 0:00:14]} 0-1


[Site "https://www.chess.com"]

[Event "Titled Tuesday Blitz May 17 Early 2022"]
[White "Liyanage, Ranindu Dilshan"]
[Black "Wagh Suyog"]
[WhiteFideId "9915834"]
[BlackFideId "25071688"]
[WhiteElo "1858"]
[BlackElo "2181"]
[Result "0-1"]
[Round "06"]
[TimeControl "180+1"]
[Date "2022.05.17"]
[WhiteClock "0:00:01"]
[BlackClock "0:00:09"]

1. d4 {[%clk 0:02:59]}  Nf6 {[%clk 0:02:58]} 2. Nc3 {[%clk 0:02:59]}  d5 {[%clk 0:02:56]} 3. Bf4 {[%clk 0:03:00]}  e6 {[%clk 0:02:53]} 4. Nb5 {[%clk 0:02:59]}  Na6 {[%clk 0:02:51]} 5. e3 {[%clk 0:02:59]}  c6 {[%clk 0:02:51]} 6. Nc3 {[%clk 0:02:59]}  Nc7 {[%clk 0:02:52]} 7. Nf3 {[%clk 0:03:00]}  Nh5 {[%clk 0:02:46]} 8. Be5 {[%clk 0:02:52]}  Bd6 {[%clk 0:02:45]} 9. Bd3 {[%clk 0:02:41]}  b6 {[%clk 0:02:44]} 10. g4 {[%clk 0:02:34]}  Nf6 {[%clk 0:02:44]} 11. g5 {[%clk 0:02:34]}  Nh5 {[%clk 0:02:43]} 12. Nh4 {[%clk 0:02:21]}  Bxe5 {[%clk 0:02:24]} 13. Qxh5 {[%clk 0:02:20]}  g6 {[%clk 0:02:25]} 14. Qh6 {[%clk 0:01:49]}  Bd6 {[%clk 0:02:25]} 15. Bxg6 {[%clk 0:01:44]}  fxg6 {[%clk 0:02:20]} 16. Nxg6 {[%clk 0:01:44]}  hxg6 {[%clk 0:01:50]} 17. Qxh8+ {[%clk 0:01:45]}  Kd7 {[%clk 0:01:50]} 18. Qg7+ {[%clk 0:01:43]}  Qe7 {[%clk 0:01:51]} 19. Qxg6 {[%clk 0:01:44]}  Ba6 {[%clk 0:01:47]} 20. O-O-O {[%clk 0:01:42]}  Rf8 {[%clk 0:01:41]} 21. f4 {[%clk 0:01:40]}  Bb4 {[%clk 0:01:31]} 22. Nb1 {[%clk 0:01:34]}  Be2 {[%clk 0:01:30]} 23. Rdg1 {[%clk 0:01:08]}  Bf3 {[%clk 0:01:29]} 24. c3 {[%clk 0:01:08]}  Be4 {[%clk 0:01:22]} 25. Qh6 {[%clk 0:01:05]}  Bd6 {[%clk 0:01:09]} 26. g6 {[%clk 0:01:03]}  Ne8 {[%clk 0:01:06]} 27. Nd2 {[%clk 0:00:52]}  Bxh1 {[%clk 0:01:05]} 28. Rxh1 {[%clk 0:00:53]}  Qg7 {[%clk 0:01:05]} 29. Qg5 {[%clk 0:00:51]}  Rh8 {[%clk 0:01:01]} 30. h4 {[%clk 0:00:49]}  Be7 {[%clk 0:01:01]} 31. Qg3 {[%clk 0:00:40]}  Rh5 {[%clk 0:00:55]} 32. Nf3 {[%clk 0:00:38]}  Bf6 {[%clk 0:00:54]} 33. Qg4 {[%clk 0:00:36]}  Qh6 {[%clk 0:00:51]} 34. Kd2 {[%clk 0:00:19]}  Ng7 {[%clk 0:00:51]} 35. Ng5 {[%clk 0:00:16]}  Bxg5 {[%clk 0:00:49]} 36. fxg5 {[%clk 0:00:16]}  Qxg6 {[%clk 0:00:47]} 37. Qf4 {[%clk 0:00:16]}  Rh8 {[%clk 0:00:40]} 38. Qe5 {[%clk 0:00:14]}  Rf8 {[%clk 0:00:40]} 39. c4 {[%clk 0:00:02]}  dxc4 {[%clk 0:00:33]} 40. Kc3 {[%clk 0:00:02]}  Qd3+ {[%clk 0:00:31]} 41. Kb4 {[%clk 0:00:02]}  a5+ {[%clk 0:00:31]} 42. Ka4 {[%clk 0:00:03]}  Qc2+ {[%clk 0:00:25]} 43. Ka3 {[%clk 0:00:03]}  Qd3+ {[%clk 0:00:15]} 44. Ka4 {[%clk 0:00:03]}  Rf7 {[%clk 0:00:09]} 45. g6 {[%clk 0:00:03]}  c3 {[%clk 0:00:09]} 46. gxf7 {[%clk 0:00:01]}  Qc4+ {[%clk 0:00:09]} 0-1


[Site "https://www.chess.com"]

[Event "Titled Tuesday Blitz May 17 Early 2022"]
[White "Makarian, Rudik"]
[Black "Bachmann, Axel"]
[WhiteFideId "44105681"]
[BlackFideId "3700488"]
[WhiteElo "2419"]
[BlackElo "2587"]
[Result "1-0"]
[Round "06"]
[TimeControl "180+1"]
[Date "2022.05.17"]
[WhiteClock "0:00:05"]
[BlackClock "0:00:05"]

1. Nf3 {[%clk 0:03:00]}  Nf6 {[%clk 0:02:58]} 2. c4 {[%clk 0:03:00]}  e6 {[%clk 0:02:57]} 3. d4 {[%clk 0:03:00]}  Bb4+ {[%clk 0:02:53]} 4. Bd2 {[%clk 0:02:58]}  c5 {[%clk 0:02:53]} 5. Bxb4 {[%clk 0:02:56]}  cxb4 {[%clk 0:02:54]} 6. c5 {[%clk 0:02:56]}  d6 {[%clk 0:02:46]} 7. cxd6 {[%clk 0:02:57]}  Qxd6 {[%clk 0:02:45]} 8. e3 {[%clk 0:02:58]}  O-O {[%clk 0:02:45]} 9. Bd3 {[%clk 0:02:57]}  Nc6 {[%clk 0:02:42]} 10. Nbd2 {[%clk 0:02:58]}  b6 {[%clk 0:02:39]} 11. O-O {[%clk 0:02:58]}  Bb7 {[%clk 0:02:39]} 12. Qe2 {[%clk 0:02:59]}  Qe7 {[%clk 0:02:32]} 13. Nc4 {[%clk 0:02:57]}  Rac8 {[%clk 0:02:29]} 14. Rac1 {[%clk 0:02:56]}  Nd5 {[%clk 0:02:27]} 15. Nfe5 {[%clk 0:02:49]}  Nxe5 {[%clk 0:02:21]} 16. Nxe5 {[%clk 0:02:50]}  h6 {[%clk 0:02:13]} 17. Ba6 {[%clk 0:02:47]}  Nf6 {[%clk 0:01:58]} 18. Qb5 {[%clk 0:02:36]}  Nd5 {[%clk 0:01:51]} 19. Nc6 {[%clk 0:02:07]}  Bxc6 {[%clk 0:01:05]} 20. Rxc6 {[%clk 0:02:08]}  Rxc6 {[%clk 0:00:58]} 21. Qxc6 {[%clk 0:02:09]}  Rd8 {[%clk 0:00:58]} 22. Rc1 {[%clk 0:02:06]}  e5 {[%clk 0:00:57]} 23. Rd1 {[%clk 0:01:25]}  b3 {[%clk 0:00:46]} 24. a3 {[%clk 0:01:08]}  exd4 {[%clk 0:00:38]} 25. Rxd4 {[%clk 0:01:04]}  Nc7 {[%clk 0:00:37]} 26. Rxd8+ {[%clk 0:00:44]}  Qxd8 {[%clk 0:00:38]} 27. Bf1 {[%clk 0:00:44]}  Ne6 {[%clk 0:00:38]} 28. Qc3 {[%clk 0:00:38]}  Qd1 {[%clk 0:00:33]} 29. g3 {[%clk 0:00:32]}  Nc5 {[%clk 0:00:29]} 30. Kg2 {[%clk 0:00:28]}  Qc2 {[%clk 0:00:25]} 31. Qe5 {[%clk 0:00:25]}  g6 {[%clk 0:00:11]} 32. Bb5 {[%clk 0:00:17]}  Ne4 {[%clk 0:00:08]} 33. Qe8+ {[%clk 0:00:15]}  Kg7 {[%clk 0:00:09]} 34. Qe5+ {[%clk 0:00:15]}  Kg8 {[%clk 0:00:09]} 35. Qf4 {[%clk 0:00:15]}  Nc5 {[%clk 0:00:04]} 36. Be8 {[%clk 0:00:13]}  f5 {[%clk 0:00:02]} 37. Bxg6 {[%clk 0:00:12]}  Qxb2 {[%clk 0:00:01]} 38. Bxf5 {[%clk 0:00:11]}  Qf6 {[%clk 0:00:02]} 39. Qg4+ {[%clk 0:00:11]}  Kf8 {[%clk 0:00:02]} 40. h4 {[%clk 0:00:09]}  b2 {[%clk 0:00:02]} 41. Bb1 {[%clk 0:00:07]}  Qc6+ {[%clk 0:00:02]} 42. Kh2 {[%clk 0:00:08]}  Qd5 {[%clk 0:00:01]} 43. Qf4+ {[%clk 0:00:07]}  Ke7 {[%clk 0:00:01]} 44. Qxh6 {[%clk 0:00:07]}  Qd2 {[%clk 0:00:02]} 45. Qh7+ {[%clk 0:00:07]}  Kd6 {[%clk 0:00:02]} 46. Qf5 {[%clk 0:00:06]}  Na4 {[%clk 0:00:01]} 47. h5 {[%clk 0:00:05]}  Nc3 {[%clk 0:00:02]} 48. Qd3+ {[%clk 0:00:05]}  Qxd3 {[%clk 0:00:02]} 49. Bxd3 {[%clk 0:00:06]}  Ke5 {[%clk 0:00:02]} 50. f4+ {[%clk 0:00:05]}  Kf6 {[%clk 0:00:02]} 51. g4 {[%clk 0:00:06]}  b5 {[%clk 0:00:02]} 52. g5+ {[%clk 0:00:06]}  Kg7 {[%clk 0:00:03]} 53. h6+ {[%clk 0:00:06]}  Kg8 {[%clk 0:00:03]} 54. g6 {[%clk 0:00:05]}  a5 {[%clk 0:00:04]} 55. f5 {[%clk 0:00:05]}  b1=Q {[%clk 0:00:04]} 56. Bxb1 {[%clk 0:00:05]}  Nxb1 {[%clk 0:00:05]} 57. f6 {[%clk 0:00:05]}  Nd2 {[%clk 0:00:04]} 58. f7+ {[%clk 0:00:04]}  Kf8 {[%clk 0:00:04]} 59. h7 {[%clk 0:00:05]}  Nf3+ {[%clk 0:00:05]} 60. Kh1 {[%clk 0:00:05]} 1-0


[Site "https://www.chess.com"]

[Event "Titled Tuesday Blitz May 17 Early 2022"]
[White "Martinez Alcantara, Jose Eduardo"]
[Black "Sjugirov, Sanan"]
[WhiteFideId "3805662"]
[BlackFideId "4189302"]
[WhiteElo "2690"]
[BlackElo "2602"]
[Result "1/2-1/2"]
[Round "06"]
[TimeControl "180+1"]
[Date "2022.05.17"]
[WhiteClock "0:00:04"]
[BlackClock "0:00:04"]

1. e4 {[%clk 0:02:59]}  c5 {[%clk 0:02:58]} 2. Nf3 {[%clk 0:02:59]}  d6 {[%clk 0:02:59]} 3. c3 {[%clk 0:03:00]}  Nf6 {[%clk 0:02:59]} 4. h3 {[%clk 0:03:00]}  Nc6 {[%clk 0:02:56]} 5. Bd3 {[%clk 0:03:01]}  g6 {[%clk 0:02:48]} 6. Bc2 {[%clk 0:03:01]}  Bg7 {[%clk 0:02:43]} 7. d4 {[%clk 0:03:02]}  cxd4 {[%clk 0:02:36]} 8. cxd4 {[%clk 0:03:02]}  Nb4 {[%clk 0:02:27]} 9. Ba4+ {[%clk 0:03:03]}  Bd7 {[%clk 0:02:27]} 10. Nc3 {[%clk 0:03:03]}  O-O {[%clk 0:02:25]} 11. Bb3 {[%clk 0:02:57]}  Rc8 {[%clk 0:02:20]} 12. O-O {[%clk 0:02:56]}  Nc6 {[%clk 0:02:05]} 13. Re1 {[%clk 0:02:53]}  Na5 {[%clk 0:02:02]} 14. Bc2 {[%clk 0:02:53]}  Nc4 {[%clk 0:02:02]} 15. Bd3 {[%clk 0:02:47]}  a6 {[%clk 0:01:59]} 16. b3 {[%clk 0:02:44]}  Na5 {[%clk 0:01:54]} 17. Bb2 {[%clk 0:02:44]}  Nc6 {[%clk 0:01:52]} 18. a3 {[%clk 0:02:40]}  e5 {[%clk 0:01:46]} 19. d5 {[%clk 0:02:38]}  Ne7 {[%clk 0:01:45]} 20. a4 {[%clk 0:02:28]}  Bh6 {[%clk 0:01:31]} 21. a5 {[%clk 0:02:23]}  Nh5 {[%clk 0:01:23]} 22. Bc4 {[%clk 0:02:23]}  Rb8 {[%clk 0:00:39]} 23. Ba3 {[%clk 0:02:14]}  Nc8 {[%clk 0:00:39]} 24. Bb4 {[%clk 0:01:59]}  Nf4 {[%clk 0:00:39]} 25. Ne2 {[%clk 0:01:56]}  Qf6 {[%clk 0:00:35]} 26. Nxf4 {[%clk 0:01:56]}  Bxf4 {[%clk 0:00:36]} 27. Bd2 {[%clk 0:01:47]}  Ne7 {[%clk 0:00:33]} 28. Bxf4 {[%clk 0:01:45]}  Qxf4 {[%clk 0:00:34]} 29. Qd2 {[%clk 0:01:42]}  Qxd2 {[%clk 0:00:32]} 30. Nxd2 {[%clk 0:01:43]}  Rfd8 {[%clk 0:00:25]} 31. Rec1 {[%clk 0:01:40]}  Rbc8 {[%clk 0:00:20]} 32. f3 {[%clk 0:01:33]}  Kf8 {[%clk 0:00:20]} 33. h4 {[%clk 0:01:24]}  Rc7 {[%clk 0:00:20]} 34. g3 {[%clk 0:01:18]}  Be8 {[%clk 0:00:19]} 35. Bf1 {[%clk 0:01:10]}  Rdc8 {[%clk 0:00:18]} 36. Rxc7 {[%clk 0:00:57]}  Rxc7 {[%clk 0:00:19]} 37. Nc4 {[%clk 0:00:58]}  Nc8 {[%clk 0:00:19]} 38. Kf2 {[%clk 0:00:35]}  Bb5 {[%clk 0:00:19]} 39. Rb1 {[%clk 0:00:24]}  Ke7 {[%clk 0:00:16]} 40. Ke3 {[%clk 0:00:24]}  Na7 {[%clk 0:00:09]} 41. f4 {[%clk 0:00:23]}  f6 {[%clk 0:00:09]} 42. Be2 {[%clk 0:00:22]}  Bd7 {[%clk 0:00:07]} 43. h5 {[%clk 0:00:20]}  g5 {[%clk 0:00:06]} 44. fxg5 {[%clk 0:00:10]}  fxg5 {[%clk 0:00:07]} 45. Nb6 {[%clk 0:00:10]}  Bb5 {[%clk 0:00:04]} 46. Bc4 {[%clk 0:00:10]}  Nc8 {[%clk 0:00:03]} 47. Nxc8+ {[%clk 0:00:04]}  Rxc8 {[%clk 0:00:03]} 48. Kd3 {[%clk 0:00:04]}  Bd7 {[%clk 0:00:03]} 49. Rf1 {[%clk 0:00:02]}  h6 {[%clk 0:00:04]} 50. Ke3 {[%clk 0:00:02]}  Bg4 {[%clk 0:00:04]} 51. Rf2 {[%clk 0:00:02]}  Bd7 {[%clk 0:00:03]} 52. Rf1 {[%clk 0:00:02]}  Rb8 {[%clk 0:00:04]} 53. Ra1 {[%clk 0:00:02]}  Bg4 {[%clk 0:00:04]} 54. Be2 {[%clk 0:00:02]}  Bd7 {[%clk 0:00:04]} 55. Rc1 {[%clk 0:00:02]}  Rc8 {[%clk 0:00:03]} 56. Rxc8 {[%clk 0:00:02]}  Bxc8 {[%clk 0:00:04]} 57. b4 {[%clk 0:00:03]}  Bd7 {[%clk 0:00:04]} 58. Kf2 {[%clk 0:00:03]}  Kd8 {[%clk 0:00:05]} 59. Ke3 {[%clk 0:00:03]}  Kc7 {[%clk 0:00:05]} 60. Kd2 {[%clk 0:00:04]}  Be8 {[%clk 0:00:05]} 61. Kd3 {[%clk 0:00:04]}  Bb5+ {[%clk 0:00:05]} 62. Ke3 {[%clk 0:00:04]}  Ba4 {[%clk 0:00:05]} 63. Kd2 {[%clk 0:00:04]}  Bd7 {[%clk 0:00:05]} 64. Kc3 {[%clk 0:00:03]}  Bc8 {[%clk 0:00:04]} 65. Kd2 {[%clk 0:00:04]}  Bd7 {[%clk 0:00:03]} 66. Kc3 {[%clk 0:00:04]}  Bc8 {[%clk 0:00:03]} 67. Kd2 {[%clk 0:00:04]}  Bd7 {[%clk 0:00:04]} 1/2-1/2


[Site "https://www.chess.com"]

[Event "Titled Tuesday Blitz May 17 Early 2022"]
[White "Matinian, Nikita"]
[Black "Babazada, Khazar"]
[WhiteFideId "24129100"]
[BlackFideId "13413554"]
[WhiteElo "2422"]
[BlackElo "2406"]
[Result "0-1"]
[Round "06"]
[TimeControl "180+1"]
[Date "2022.05.17"]
[WhiteClock "0:00:38"]
[BlackClock "0:01:43"]

1. e4 {[%clk 0:03:00]}  Nf6 {[%clk 0:03:00]} 2. e5 {[%clk 0:03:00]}  Nd5 {[%clk 0:03:01]} 3. d4 {[%clk 0:03:01]}  Nb6 {[%clk 0:03:01]} 4. Nf3 {[%clk 0:02:59]}  d6 {[%clk 0:03:02]} 5. h3 {[%clk 0:02:46]}  g6 {[%clk 0:03:02]} 6. a4 {[%clk 0:02:44]}  a5 {[%clk 0:03:01]} 7. c3 {[%clk 0:02:42]}  Bg7 {[%clk 0:03:01]} 8. Bd3 {[%clk 0:02:38]}  O-O {[%clk 0:03:00]} 9. Qe2 {[%clk 0:02:37]}  Nc6 {[%clk 0:02:59]} 10. Bf4 {[%clk 0:02:36]}  dxe5 {[%clk 0:02:58]} 11. Nxe5 {[%clk 0:02:36]}  Nxe5 {[%clk 0:02:57]} 12. Bxe5 {[%clk 0:02:37]}  Bxe5 {[%clk 0:02:24]} 13. Qxe5 {[%clk 0:02:34]}  Qd6 {[%clk 0:02:22]} 14. Qxd6 {[%clk 0:02:29]}  exd6 {[%clk 0:02:23]} 15. Nd2 {[%clk 0:02:27]}  Bd7 {[%clk 0:02:23]} 16. b3 {[%clk 0:02:26]}  Rfe8+ {[%clk 0:02:22]} 17. Kd1 {[%clk 0:02:27]}  Nd5 {[%clk 0:02:19]} 18. Kc2 {[%clk 0:02:24]}  Nf4 {[%clk 0:02:20]} 19. g4 {[%clk 0:02:02]}  Bc6 {[%clk 0:02:19]} 20. f3 {[%clk 0:01:54]}  Re3 {[%clk 0:02:19]} 21. Bb5 {[%clk 0:01:44]}  Bxb5 {[%clk 0:02:14]} 22. axb5 {[%clk 0:01:44]}  Nd5 {[%clk 0:02:15]} 23. c4 {[%clk 0:01:35]}  Nb4+ {[%clk 0:02:15]} 24. Kd1 {[%clk 0:01:28]}  b6 {[%clk 0:02:11]} 25. Rf1 {[%clk 0:01:25]}  Rae8 {[%clk 0:02:11]} 26. g5 {[%clk 0:01:18]}  Kg7 {[%clk 0:02:04]} 27. h4 {[%clk 0:01:18]}  Re2 {[%clk 0:02:02]} 28. Ne4 {[%clk 0:00:51]}  Rh2 {[%clk 0:02:01]} 29. d5 {[%clk 0:00:52]}  Rxh4 {[%clk 0:01:56]} 30. Ke2 {[%clk 0:00:46]}  h6 {[%clk 0:01:55]} 31. gxh6+ {[%clk 0:00:46]}  Rxh6 {[%clk 0:01:54]} 32. Kf2 {[%clk 0:00:41]}  f5 {[%clk 0:01:54]} 33. Ng5 {[%clk 0:00:41]}  Nd3+ {[%clk 0:01:51]} 34. Kg3 {[%clk 0:00:39]}  f4+ {[%clk 0:01:50]} 35. Kg4 {[%clk 0:00:39]}  Reh8 {[%clk 0:01:43]} 36. Ne6+ {[%clk 0:00:38]}  Kf6 {[%clk 0:01:43]} 0-1


[Site "https://www.chess.com"]

[Event "Titled Tuesday Blitz May 17 Early 2022"]
[White "Oparin, Grigoriy"]
[Black "Donchenko, Alexander"]
[WhiteFideId "24125890"]
[BlackFideId "24603295"]
[WhiteElo "2665"]
[BlackElo "2572"]
[Result "1/2-1/2"]
[Round "06"]
[TimeControl "180+1"]
[Date "2022.05.17"]
[WhiteClock "0:00:20"]
[BlackClock "0:00:22"]

1. d4 {[%clk 0:03:00]}  Nf6 {[%clk 0:02:59]} 2. c4 {[%clk 0:03:01]}  e6 {[%clk 0:03:00]} 3. Nf3 {[%clk 0:03:02]}  d5 {[%clk 0:03:00]} 4. g3 {[%clk 0:03:02]}  Bb4+ {[%clk 0:03:00]} 5. Bd2 {[%clk 0:03:01]}  Be7 {[%clk 0:03:00]} 6. Bg2 {[%clk 0:03:02]}  O-O {[%clk 0:03:00]} 7. O-O {[%clk 0:03:02]}  Nbd7 {[%clk 0:03:01]} 8. Bc3 {[%clk 0:03:03]}  b6 {[%clk 0:03:00]} 9. cxd5 {[%clk 0:03:02]}  exd5 {[%clk 0:03:00]} 10. Nbd2 {[%clk 0:02:59]}  Bb7 {[%clk 0:03:00]} 11. Rc1 {[%clk 0:03:00]}  Re8 {[%clk 0:02:57]} 12. Re1 {[%clk 0:03:00]}  c5 {[%clk 0:02:53]} 13. dxc5 {[%clk 0:03:00]}  bxc5 {[%clk 0:02:53]} 14. e3 {[%clk 0:03:00]}  Qb6 {[%clk 0:02:51]} 15. Nh4 {[%clk 0:02:57]}  Bf8 {[%clk 0:02:48]} 16. Qa4 {[%clk 0:02:48]}  Bc6 {[%clk 0:02:37]} 17. Qf4 {[%clk 0:02:48]}  Rac8 {[%clk 0:02:22]} 18. Nf5 {[%clk 0:02:45]}  Ba8 {[%clk 0:02:22]} 19. b3 {[%clk 0:02:10]}  a5 {[%clk 0:01:52]} 20. Bb2 {[%clk 0:01:59]}  Qb4 {[%clk 0:01:39]} 21. Bc3 {[%clk 0:01:54]}  Qxf4 {[%clk 0:01:38]} 22. gxf4 {[%clk 0:01:55]}  a4 {[%clk 0:01:27]} 23. bxa4 {[%clk 0:01:55]}  g6 {[%clk 0:01:24]} 24. Ng3 {[%clk 0:01:50]}  d4 {[%clk 0:01:21]} 25. exd4 {[%clk 0:01:47]}  Rxe1+ {[%clk 0:01:21]} 26. Rxe1 {[%clk 0:01:46]}  Bxg2 {[%clk 0:01:22]} 27. Kxg2 {[%clk 0:01:46]}  Nd5 {[%clk 0:01:21]} 28. Ne2 {[%clk 0:01:01]}  Nxc3 {[%clk 0:00:55]} 29. Nxc3 {[%clk 0:01:01]}  cxd4 {[%clk 0:00:56]} 30. Nb5 {[%clk 0:00:52]}  Rc2 {[%clk 0:00:53]} 31. Rd1 {[%clk 0:00:45]}  d3 {[%clk 0:00:51]} 32. Nb3 {[%clk 0:00:43]}  Nc5 {[%clk 0:00:48]} 33. N5d4 {[%clk 0:00:34]}  Rxa2 {[%clk 0:00:41]} 34. Nxc5 {[%clk 0:00:34]}  Bxc5 {[%clk 0:00:41]} 35. Rxd3 {[%clk 0:00:34]}  Rxa4 {[%clk 0:00:40]} 36. Ne2 {[%clk 0:00:35]}  Ra2 {[%clk 0:00:40]} 37. Kf3 {[%clk 0:00:35]}  f5 {[%clk 0:00:38]} 38. Rc3 {[%clk 0:00:33]}  Ba7 {[%clk 0:00:37]} 39. Rc7 {[%clk 0:00:30]}  Ra3+ {[%clk 0:00:34]} 40. Kg2 {[%clk 0:00:29]}  Bb6 {[%clk 0:00:32]} 41. Rb7 {[%clk 0:00:27]}  Bc5 {[%clk 0:00:31]} 42. Nc1 {[%clk 0:00:21]}  Bd6 {[%clk 0:00:29]} 43. Ne2 {[%clk 0:00:20]}  Rd3 {[%clk 0:00:28]} 44. Rd7 {[%clk 0:00:20]}  Kf8 {[%clk 0:00:27]} 45. Rxh7 {[%clk 0:00:19]}  Rd2 {[%clk 0:00:27]} 46. Kf3 {[%clk 0:00:18]}  Rd3+ {[%clk 0:00:28]} 47. Kg2 {[%clk 0:00:19]}  Rd2 {[%clk 0:00:29]} 48. Ng1 {[%clk 0:00:15]}  Bxf4 {[%clk 0:00:27]} 49. Nf3 {[%clk 0:00:16]}  Ra2 {[%clk 0:00:25]} 50. Nh4 {[%clk 0:00:15]}  Ra6 {[%clk 0:00:16]} 51. Rb7 {[%clk 0:00:16]}  Bg5 {[%clk 0:00:15]} 52. Nf3 {[%clk 0:00:16]}  Bf6 {[%clk 0:00:16]} 53. h3 {[%clk 0:00:16]}  Re6 {[%clk 0:00:16]} 54. Ng1 {[%clk 0:00:16]}  Re7 {[%clk 0:00:16]} 55. Rb6 {[%clk 0:00:13]}  Kf7 {[%clk 0:00:16]} 56. Nf3 {[%clk 0:00:13]}  Re6 {[%clk 0:00:17]} 57. Rb7+ {[%clk 0:00:14]}  Re7 {[%clk 0:00:17]} 58. Rb5 {[%clk 0:00:14]}  Rd7 {[%clk 0:00:17]} 59. h4 {[%clk 0:00:14]}  Re7 {[%clk 0:00:17]} 60. h5 {[%clk 0:00:15]}  gxh5 {[%clk 0:00:17]} 61. Rxf5 {[%clk 0:00:15]}  Kg6 {[%clk 0:00:18]} 62. Rb5 {[%clk 0:00:15]}  Re4 {[%clk 0:00:18]} 63. Ng1 {[%clk 0:00:15]}  Rg4+ {[%clk 0:00:18]} 64. Kf1 {[%clk 0:00:15]}  Rg5 {[%clk 0:00:19]} 65. Rxg5+ {[%clk 0:00:15]}  Bxg5 {[%clk 0:00:19]} 66. Nh3 {[%clk 0:00:15]}  Kf5 {[%clk 0:00:19]} 67. Kg2 {[%clk 0:00:16]}  Bf6 {[%clk 0:00:19]} 68. f3 {[%clk 0:00:17]}  Be5 {[%clk 0:00:20]} 69. f4 {[%clk 0:00:17]}  Bxf4 {[%clk 0:00:20]} 70. Nxf4 {[%clk 0:00:18]}  Kxf4 {[%clk 0:00:21]} 71. Kh3 {[%clk 0:00:18]}  Kf3 {[%clk 0:00:21]} 72. Kh4 {[%clk 0:00:19]}  Kf4 {[%clk 0:00:22]} 73. Kxh5 {[%clk 0:00:20]} 1/2-1/2


[Site "https://www.chess.com"]